Workbook

Sheet Compliance
A1: Service | B1: Priority | C1: Indicate Comply =Y / Not Comply = N | D1: Score
A2: General functionality requirement (Service C1 to C30)
A3: C1 Follow the standards and procedures of the GPAA diligently, including the Information Technology Infrastructure Library (ITIL) practices as agreed upfront and as these evolve. | B3: 5 | D3: =IF(C3="Y",B3*1,0) -> 0
A4: Manage and coordinate the services in accordance with the agreed industry standard ITIL framework and to ensure that IT services are delivered effectively and efficiently. It must be noted that the Service Provider will be afforded time to assess and ensure the implementation of the ITIL process within the GPAA environment.
A5: C2 Attend to and resolve all incidents, service requests and change requests within the contracted timelines that are logged in respect of all the contracted services that must be maintained and supported by the Service Provider. | B5: 5 | D5: =IF(C5="Y",B5*1,0) -> 0
A6: C3 Ensure that only products and product versions that have been approved/authorised by the GPAA are installed. | B6: 5 | D6: =IF(C6="Y",B6*1,0) -> 0
A7: C4 Compile (where required) and maintain all related documentation that are used/required/applicable to the ICT infrastructure maintenance and support services in an electronic editable format and maintained within a MS SharePoint site (owned by the GPAA) accessible by both the Service Provider and the GPAA. The documentation that must be developed and maintained are, but not limited to: | B7: 4 | D7: 0
A8: · As-built documentation, including configurations. | D8: 0
A9: · Diagrams (e.g.,, but not limited to, network, Infrastructure and deployment diagrams). | D9: 0
A10: · Standard Operating Procedures. | D10: 0
A11: · Device Inventories (Hardware and software). | D11: 0
A12: · Root Cause Analysis (RCA) Reports. | D12: 0
A13: · Network cabling floor plans. | D13: 0
A14: · Compliance reports. | D14: 0
A15: C5 Compile (where required) and maintain all configurations and scripts that are used/required/applicable to the ICT infrastructure maintenance and support services in an electronic editable format and maintained within GIT repositories (owned by the GPAA) accessible by both the Service Provider and the GPAA. The documentation that must be developed and maintained are, but not limited to: | B15: 4 | D15: 0
A16: · Scripts. | D16: 0
A17: · Configurations. | D17: 0
A18: C6 Assist the GPAA to address audit findings pertaining to the ICT infrastructure and maintenance and support services, including the implementation of recommendations to address/mitigate audit findings. | B18: 3 | D18: 0
A19: C7 Make recommendations to the GPAA in respect of industry best practices and industry trends in respect of the applicable services and solutions and services available in the open market that will assist with the improvement of the services and service delivery. | B19: 1 | D19: 0
A20: C8 Adhere to the GPAA’s security requirements and procedures and ensure that only staff members and contractors/sub-contractors who have been security vetted by the GPAA have access to the systems and facilities of the GPAA. | B20: 5 | D20: 0
A21: C9 Inform the GPAA of staff changes at least thirty (30) days in advance (prior to the change). | B21: 1 | D21: 0
A22: C10 Ensure that all maintenance and support services are rendered by support engineers that are suitably trained, skilled, experienced (minimum three years’ experience) and certified (industry standard) on the products that must be supported by them. | B22: 5 | D22: 0
A23: C11 Maintain devices in accordance with the vendor patch releases and the GPAA vulnerability and patch management standards. Ensure that all software products which must be maintained and supported as part of the Infrastructure maintenance and support agreement are always upgraded to at least version N-1. If the release date of version N-1 reaches twelve (12) months and there is no new version available, then the products should be upgraded to the latest supported version. In the event an OEM or OSM indicate an immediate change is required the upgrade shall be performed with immediate effect. | B23: 3 | D23: 0
A24: C12 Perform daily, weekly and monthly housekeeping on the various environments/platforms/services on which maintenance and support is provided and keep records of such housekeeping activities and the outcomes/results. This includes the removal of dormant service configurations and settings. | B24: 2 | D24: 0
A25: C13 Perform 1st, 2nd and 3rd line support up to resolution on all infrastructure for which the Service Provider is contracted to provide maintenance and support services on. | B25: 5 | D25: 0
A26: C14 Manage the Return Merchandise Authorization (RMA) process of failed equipment that is deployed to provision the services (irrespective of the location within the GPAA) that are maintained and supported by the Service Provider, including removal, replacement and reconfiguration up to the operational level (e.g, Cisco, HPE, Veritas just to name a few). | B26: 1 | D26: 0
A27: C15 Capacity and performance management (daily, weekly and monthly) of all services provided. | B27: 2 | D27: 0
A28: C16 Submit daily, weekly and monthly performance, utilisation/capacity and service level reports to the GPAA for the various service areas as required by the GPAA. | B28: 2 | D28: 0
A29: C17 Implement ICT change requests outside the normal business hours, i.e., Monday to Friday between 18:00 and 07:00 on the next business day and Saturdays and Sundays (24/7 if approved by the GPAA). | B29: 1 | D29: 0
A30: C18 Perform product and security patching during the maintenance slots (normally Tuesday and Thursday evenings between 18:00 and 05:00 the next morning). | B30: 5 | D30: 0
A31: C19 Attend all scheduled operational, service level and change management meetings and any other meetings that the GPAA require the presence/attendance of the Service Provider. | B31: 1 | D31: 0
A32: C20 Perform Incident, Request and Change on the Infrastructure, network cabling and services in accordance with the GPAA Incident, Request and Problem Management Processes. | B32: 5 | D32: 0
A33: C21 Review and update the configuration (in accordance with best practices and industry standards) of the various components used to deliver a specific service to optimise performance and user experience, including performance tuning. | B33: 2 | D33: 0
A34: C22 Conduct annual service satisfaction surveys in consultation with the GPAA and provide the outcomes/results of the survey to the GPAA accompanied by the recommended remediations to address the areas where improvement is required. | B34: 3 | D34: 0
A35: C23 Upgrade the firmware on all the devices/components/platforms that are used to render the services which the Service Provider must maintain and support. Where required, the Service Provider must liaise with the OEM/OSM for the upgrades. | B35: 4 | D35: 0
A36: C24 Provide full assistance to the GPAA to recover services (from either disk backups or tape backups or constructing the service from scratch) because of service disruptions, as well as during the two service continuity exercises during a financial year (April to March). The assistance provided shall be on a dedicated basis to ensure that the GPAA’s Recovery Time Objectives (RTOs) and Recovery Point Objectives (RPOs) are met. Like all the other services, this is a 24/7 service. | B36: 5 | D36: 0
A37: C25 Provide full support and assistance and cooperation to the 3rd party ICT Service Providers and ICT Bidders contracted by the GPAA with the implementation of new services or changes/upgrades/configuration of existing services, e.g., F5 load balancers, HPE infrastructure, new cloud services, etc. | B37: 4 | D37: 0
A38: C26 Monitor, measure, report and maintain all services capacity, availability and optimise performance by maintaining capacity, availability, and utilisation measures within established performance levels and thresholds. | B38: 5 | C38: Y | D38: 5
A39: C27 The service provider shall only make use of products owned/used/available/subscribed to by the GPAA to render the maintenance and support services. The use of any other products/solutions to render the services will be for the cost of the Service Provider. | B39: 5 | D39: 0
A40: C28 Coordinate Install, Move, Add, and Change (IMAC) functions in accordance with the GPAA processes. | B40: 1 | D40: 0
A41: C29 Maintain and manage passwords on all devices, software products, service accounts and databases in a GPAA owned secure environment, to which both the GPAA and the Service Provider will have access. The password policy of the GPAA shall be strictly adhered to. | B41: 5 | D41: 0
A42: C30 Monitoring and report on end-of-life software (including firmware) as well as hardware devices within the GPAA environment. | B42: 3 | D42: 0
A43: Total | B43: =SUM(B3:B42) -> 102 | D43: =SUM(D3:D42) -> 5
A44: Percentage comply | D44: =(+D43/B43)*100 -> 4.9020
A45: Weight | D45: 20
A46: Minimum Threshold | D46: 15
A47: Score - Requirement met | D47: =+D45*(D44/100) -> 0.98
A48: Higher Than MinimumThreshold? | D48: =IF(D47<D46,"N","Y") -> N
A51: C31 Network Management Services
A52: C31.1 Provide experienced, trained and certified resources to configure and support the following hardware components to ensure that the components are configured to make use of all the functionality and features available ensuring optimal use and performance:
A53: · Cisco customer edge routers | B53: 5 | C53: Y | D53: =IF(C53="Y",B53*1,0) -> 5
A54: · Cisco Nexus Core Data centre switches | B54: 5 | C54: Y | D54: 5
A55: · Cisco Distribution switches | B55: 5 | D55: 0
A56: · Cisco Access switches | B56: 5 | D56: 0
A57: · Cisco Wireless Controllers | B57: 5 | D57: 0
A58: · Cisco Wireless Access Points | B58: 5 | D58: 0
A59: · Cisco Data centre Firewalls with IPS | B59: 5 | D59: 0
A60: · Cisco Edge Firewalls | B60: 5 | D60: 0
A61: · Cisco ISE | B61: 5 | D61: 0
A62: · Cisco WSA | B62: 5 | D62: 0
A63: · Cisco ESA | B63: 5 | D63: 0
A64: · Cisco MSE appliance | B64: 1 | D64: 0
A65: · Cisco MCS appliance for voice | B65: 1 | D65: 0
A66: · Cisco MX300/MX800 Telepresence | B66: 1 | D66: 0
A67: C31.2 Provide experienced, trained and certified resources to configure and support the following software products to ensure that the components are configured to make use of all the functionality and features available ensuring optimal use and performance.
A68: · Cisco Prime. | B68: 4 | D68: =IF(C68="Y",B68*1,0) -> 0
A69: · Cisco DNA. | B69: 4 | D69: 0
A70: · Cisco Collector. | B70: 1 | D70: 0
A71: · Cisco DUO. | B71: 4 | D71: 0
A72: · Cisco MSE. | B72: 1 | D72: 0
A73: · Cisco AnyConnect. | B73: 5 | D73: 0
A74: · Cisco Umbrella. | B74: 1 | D74: 0
A75: · Cisco Cloudlock. | B75: 1 | D75: 0
A76: · Cisco Stealthwatch. | B76: 1 | D76: 0
A77: · Cisco CUCM. | B77: 5 | D77: 0
A78: · Cisco Unity Connection (Primary Data Centre). | B78: 1 | D78: 0
A79: · Cisco UCCX (Primary Data Centre). | B79: 5 | D79: 0
A80: · Cisco Attendance Console (Primary Data Centre). | B80: 1 | D80: 0
A81: · Cisco Jabber (IM & Presence). | B81: 5 | D81: 0
A82: · Cisco Webex and media servers. | B82: 1 | D82: 0
A83: · Cisco Social Miner. | B83: 1 | D83: 0
A84: C31.3 Overall responsibility for the management, maintenance and support of the Wide Area Network (WAN), Local Area Networks (LANs) and the Wireless networks in all the offices of the GPAA as listed in Table 4. | B84: 5 | D84: 0
A85: C31.4 Provision of additional management tools complementary to the monitoring tools provided by the GPAA that can be used to proactively monitor, manage, and report on the network or services issues. | B85: 1 | D85: 0
A86: C31.5 Ensure that last mile and MPLS connectivity is available. | B86: 5 | D86: 0
A87: C31.6 Ensure APN/VPN services and connectivity, including liaising with the APN Service Provider for APN connectivity. | B87: 5 | D87: 0
A88: C31.7 Ensure Internet service availability and capacity in collaboration with the GPAA’s Internet Service Provider. | B88: 5 | D88: 0
A89: C.31.8 Implement Network Security in accordance with the policies and standards, defined by the GPAA Security Policy. | B89: 5 | D89: 0
A90: C31.9 Maintain SNMP configuration on all Cisco devices for asset collection and monitoring. | B90: 5 | D90: 0
A91: C31.10 Maintain and configure to optimise traffic flow between data centres, between and within offices, mobile vehicles and remote users for all network connectivity. | B91: 5 | D91: 0
A92: C31.11 Skills Rate Card
A93: · Attach a Rate Card for all the skill types that may be required to execute projects in this service area in sheet named Network Mngt Services Rate Card | B93: 5 | D93: =IF(C93="Y",B93*1,0) -> 0
A94: List: | D94: 0
A95: Description of the Skill: Microsoft Server Support Engineer. | D95: 0
A96: Rate: Hourly Rate inclusive of VAT | D96: 0
A97: Total | B97: =SUM(B53:B96) -> 140 | D97: =SUM(D53:D96) -> 10
A98: Percentage comply | D98: =(+D97/B97)*100 -> 7.1429
A99: Weight | D99: 10
A100: Minimum Threshold | D100: 5
A101: Score - Requirement met | D101: =+D99*(D98/100) -> 0.71
A102: Higher Than MinimumThreshold? | D102: =IF(D101<D100,"N","Y") -> N
A104: C32 Network Cabling
A105: C32.1 Management and support of the GPAA cabling infrastructure (copper and fibre) for all network connected devices or infrastructure at all the GPAA points of presence and data centres. The Service Provider must have presence at each of the points of presence of the GPAA to minimise travel expenses. | B105: 5 | D105: =IF(C105="Y",B105*1,0) -> 0
A106: Where the Service Provider does not have presence at a GPAA site the Service Provider must sub-contract a suitably skilled 3rd party (Small to Medium-Sized Enterprise (SME)) to render the services on behalf of the Service Provider. The overall responsibility for the delivery and quality of the service/work will reside with the Service Provider. | D106: 0
A107: C32.2 Perform the cabling related work in accordance with the cabling standards and expected time frames of the GPAA and make use of new material of high quality to deliver the required services. | B107: 5 | D107: 0
A108: C32.3 Provide the GPAA with a Rate Card for all material, standard cost per network point, services and labour costs related to network cabling in sheet named Cabling Rate Card. The Rate Card should be revised/updated and approved by the GPAA on each anniversary of the contract and the Rate Card will remain valid for the next twelve (12) months directly following the anniversary date. | B108: 5 | D108: 0
A109: C32.4 The Rate Card further down in sheet Cabling Rate Card must be completed in full and the Rate Card will remain valid for the next twelve (12) months directly following the contract date. | B109: 3 | D109: 0
A110: C32.5 Provide quotations to the GPAA for the individual cabling related requests of the GPAA. The rates/fees quoted shall be in accordance with the ruling Rate Card. | B110: 3 | D110: 0
A111: C32.6 Conduct site visits to new facilities where network cabling must be installed at no additional cost to the GPAA. | B111: 5 | D111: 0
A112: Total | B112: =SUM(B105:B111) -> 26 | D112: =SUM(D105:D111) -> 0
A113: Percentage comply | D113: =(+D112/B112)*100 -> 0.0000
A114: Weight | D114: 5
A115: Minimum Threshold | D115: 3
A116: Score - Requirement met | D116: =+D114*(D113/100) -> 0.00
A117: Higher Than MinimumThreshold? | D117: =IF(D116<D115,"N","Y") -> N
A119: C33 SQL Database Management
A120: C33.1 Provide experienced, trained and certified (on the respective products) resources to: | B120: 5 | D120: =IF(C120="Y",B120*1,0) -> 0
A121: · Configure and support the MS SQL 2012, MS SQL 2014 and MS SQL 2019 database instances with multiple databases in a clustered high-availability mode across two data centres to ensure that all the functionality and features result in optimal performance. | B121: 5 | D121: 0
A122: · Assist 3rd party Service Providers with the creation of new databases and upgrades and migrations of applications and databases that makes use of MS SQL databases in both the GPAA’s production and test environments. | B122: 4 | D122: 0
A123: · Take ad-hoc database backups/dumps/exports exporting and restores. | B123: 1 | D123: 0
A124: · Monitor database growth and report excessive growth. | B124: 3 | D124: 0
A125: · Propose/Retire/decommission unused/dormant databases. | B125: 3 | D125: 0
A126: Total | B126: =SUM(B120:B125) -> 21 | D126: =SUM(D120:D125) -> 0
A127: Percentage comply | D127: =(+D126/B126)*100 -> 0.0000
A128: Weight | D128: 5
A129: Minimum Threshold | D129: 3
A130: Score - Requirement met | D130: =+D128*(D127/100) -> 0.00
A131: Higher Than MinimumThreshold? | D131: =IF(D130<D129,"N","Y") -> N
A133: C34 SharePoint Support
A134: C34.1 Provide experienced, trained and certified (on the respective product(s)) resources to: | B134: 5 | D134: =IF(C134="Y",B134*1,0) -> 0
A135: · Maintain and support SharePoint and associated MS SQL databases in a high availability clustered environment for both the GPAA’s production and test environments. | B135: 5 | D135: 0
A136: · Provide input when reviewing SharePoint architecture. | B136: 1 | D136: 0
A137: · Maintain integration with Microsoft Active directory. | B137: 5 | D137: 0
A138: · Maintain integration of Project Server in SharePoint. | B138: 5 | D138: 0
A139: · Creation and maintenance of SharePoint team sites. | B139: 1 | D139: 0
A140: · Assist the users with the uploading of content. | B140: 1 | D140: 0
A141: · Maintain and Support SharePoint sites deployed on SharePoint Online. | B141: 1 | D141: 0
A142: · Maintenance and support on SharePoint workflows (no workflows currently implemented). | B142: 1 | D142: 0
A143: Total | B143: =SUM(B134:B142) -> 25 | D143: =SUM(D134:D142) -> 0
A144: Percentage comply | D144: =(+D143/B143)*100 -> 0.0000
A145: Weight | D145: 5
A146: Minimum Threshold | D146: 3
A147: Score - Requirement met | D147: =+D145*(D144/100) -> 0.00
A148: Higher Than MinimumThreshold? | D148: =IF(D147<D146,"N","Y") -> N
A150: C35 Citrix Maintenance and Support
A151: C35.1 Provide experienced, trained and certified (on the respective product(s)) resources to: | B151: 5 | D151: =IF(C151="Y",B151*1,0) -> 0
A152: · Provide overall management and support for the GPAA’s CITRIX production and test environments in a high availably configuration. | B152: 5 | D152: 0
A153: · Maintain and support the MS SQL 2019 database that is used by the CITRIX Licensing server. | B153: 5 | D153: 0
A154: Total | B154: =SUM(B151:B153) -> 15 | D154: =SUM(D151:D153) -> 0
A155: Percentage comply | D155: =(+D154/B154)*100 -> 0.0000
A156: Weight | D156: 5
A157: Minimum Threshold | D157: 3
A158: Score - Requirement met | D158: =+D156*(D155/100) -> 0.00
A159: Higher Than MinimumThreshold? | D159: =IF(D158<D157,"N","Y") -> N
A161: C36 Service Management Services
A162: C36.1 Establish and maintain sound business and operational relationships between the Service Provider and the GPAA. | B162: 3 | D162: =IF(C162="Y",B162*1,0) -> 0
A163: C36.2 Engage with the GPAA in respect of the overall ICT Strategy and business objectives to align and optimise the Service Provider’s service offerings. | B163: 3 | D163: 0
A164: C36.3 Ensure that the services are rendered in a professional manner and in accordance with the contracted scope, quality, time/frequency and service levels to ensure end-user satisfaction in terms of all the contracted services. | B164: 5 | D164: 0
A165: C36.4 Direct and coordinate service reviews, continuous improvements initiatives and innovation to ensure suitability and effectiveness of the services, new services and market trends. | B165: 1 | D165: 0
A166: C36.5 Facilitate the process of efficient and effective ICT governance and participate in the GPAA Governance initiatives where required. | B166: 1 | D166: 0
A167: C36.6 Attend all governance, project and/or other forums and committees as required by the GPAA. | B167: 1 | D167: 0
A168: C36.7 Ensure that only resources that are suitably trained, skilled, experienced and certified on the products in the environment that they must maintain and support are allocated to render the specific services to the GPAA. | B168: 5 | D168: 0
A169: C36.8 Provide an interface to the GPAA for all operational requirements and escalations. | B169: 5 | D169: 0
A170: C36.9 Identify and drive mutually agreed to service improvement initiatives highlighting identified issues, risks and inefficiencies. | B170: 5 | D170: 0
A171: C36.10 Maintain strategic relationships with third-party vendors delivering complimentary services to the GPAA. | B171: 1 | D171: 0
A172: C36.11 Update the contract (Service Catalogue) in accordance with the Contract Change Management Procedure at each occurrence of a change to the Services being delivered to the GPAA to ensure the contract accurately reflects the current state of the service relationship. This includes: | B172: 5 | D172: 0
A173: · The addition or retiring of Services. | B173: 5 | D173: 0
A174: · Changes to existing Services that require contractual changes. | B174: 5 | D174: 0
A175: · Changes to the scope of an existing Service. | B175: 5 | D175: 0
A176: · Changes to the cost of delivering the Services, including annual cost adjustments. | B176: 5 | D176: 0
A177: Total | B177: =SUM(B162:B176) -> 55 | D177: =SUM(D162:D176) -> 0
A178: Percentage comply | D178: =(+D177/B177)*100 -> 0.0000
A179: Weight | D179: 5
A180: Minimum Threshold | D180: 3
A181: Score - Requirement met | D181: =+D179*(D178/100) -> 0.00
A182: Higher Than MinimumThreshold? | D182: =IF(D181<D180,"N","Y") -> N
A184: C37 Data Backup and Restores
A185: C37.1 Provide experienced, trained and certified (on the respective product(s)) resources to: | B185: 5 | D185: =IF(C185="Y",B185*1,0) -> 0
A186: · Maintain and support Veritas / Netbackup backup and Quantum Tape Library products. | B186: 5 | D186: 0
A187: · Configure and maintain the backup schedules in accordance with the GPAA’s backup strategy and advise the GPAA on best practices. | B187: 5 | D187: 0
A188: · Backup all Intel based systems, as well as Oracle SuperCluster as per the GPAA’s backup schedules/strategy at both data centres. | B188: 5 | D188: 0 | G188: `
A189: · Implement media management processes in accordance with the GPAA’s data backup, retention and storage requirements. | B189: 4 | D189: 0
A190: · Monitor backup tasks and review backup logs to ensure all backups were executed successfully. Re-initiate failed backups and/or alert the GPAA that a backup was not successful. | B190: 5 | D190: 0
A191: · Inform the GPAA of media requirements to support the Backup schedules and requirements. | B191: 5 | D191: 0
A192: · Conduct scheduled and ad-hoc restores according to the GPAA restore schedule and audit and forensic requirements in the GPAA test environment to verify data integrity of the backup media and validate the restore process | B192: 5 | D192: 0
A193: · Creation, implementation and maintenance of standard operating procedures related to the backup and restore services. | B193: 5 | D193: 0
A194: · Creating extra database backups when required and restoring database backups from disk or tape media if needed. | B194: 1 | D194: 0
A195: · Liaise with the offsite media storage provider for the collection and delivery of backup media. | B195: 1 | D195: 0
A196: Total | B196: =SUM(B185:B195) -> 46 | D196: =SUM(D185:D195) -> 0
A197: Percentage comply | D197: =(+D196/B196)*100 -> 0.0000
A198: Weight | D198: 5
A199: Minimum Threshold | D199: 3
A200: Score - Requirement met | D200: =+D198*(D197/100) -> 0.00
A201: Higher Than MinimumThreshold? | D201: =IF(D200<D199,"N","Y") -> N
A203: C38 End-user Support Services
A204: C38.1 Provide experienced, trained and certified (on the respective product(s)) resources to: | B204: 5 | D204: =IF(C204="Y",B204*1,0) -> 0
A205: · Install and configure: | B205: 5 | D205: 0
A206: - New end-points/workstations. | B206: 5 | D206: 0
A207: - MS office 2016 – Office 365 and One Drive. | B207: 5 | D207: 0
A208: - Adobe reader. | B208: 5 | D208: 0
A209: - Attachmate. | B209: 5 | D209: 0
... 293 more rows

Sheet Scores
A1: Service | B1: Priority | C1: Indicate Comply =Y / Not Comply = N | D1: Score
A2: General functionality requirement (Service C1 to C30)
A3: Total | B3: =Compliance!$B$43 -> 102 | D3: =Compliance!$D$43 -> 5
A4: Percentage comply | D4: =Compliance!$D$44 -> 4.901960784
A5: Weight | D5: =Compliance!$D$45 -> 20
A6: Minimum Threshold | D6: =Compliance!$D$46 -> 15
A7: Score - Requirement met | D7: =Compliance!$D$47 -> 0.98
A8: Higher Than MinimumThreshold? | D8: =Compliance!$D$48 -> N
A11: C31 Network Management Services
A12: Total | B12: =Compliance!$B$97 -> 140 | D12: =Compliance!$D$97 -> 10
A13: Percentage comply | D13: =Compliance!$D$98 -> 7.1429
A14: Weight | D14: =Compliance!$D$99 -> 10
A15: Minimum Threshold | D15: =Compliance!$D$100 -> 5
A16: Score - Requirement met | D16: =Compliance!$D$101 -> 0.71
A17: Higher Than MinimumThreshold? | D17: =Compliance!$D$102 -> N
A19: C32 Network Cabling
A20: Total | B20: =Compliance!$B$112 -> 26 | D20: =Compliance!$D$112 -> 0
A21: Percentage comply | D21: =Compliance!$D$113 -> 0.0000
A22: Weight | D22: =Compliance!$D$114 -> 5
A23: Minimum Threshold | D23: =Compliance!$D$115 -> 3
A24: Score - Requirement met | D24: =Compliance!$D$116 -> 0.00
A25: Higher Than MinimumThreshold? | D25: =Compliance!$D$117 -> N
A27: C33 SQL Database Management
A28: Total | B28: =Compliance!$B$126 -> 21 | D28: =Compliance!$D$126 -> 0
A29: Percentage comply | D29: =Compliance!$D$127 -> 0.0000
A30: Weight | D30: =Compliance!$D$128 -> 5
A31: Minimum Threshold | D31: =Compliance!$D$129 -> 3
A32: Score - Requirement met | D32: =Compliance!$D$130 -> 0.00
A33: Higher Than MinimumThreshold? | D33: =Compliance!$D$131 -> N
A35: C34 SharePoint Support
A36: Total | B36: =Compliance!$B$143 -> 25 | D36: =Compliance!$D$143 -> 0
A37: Percentage comply | D37: =Compliance!$D$144 -> 0.0000
A38: Weight | D38: =Compliance!$D$145 -> 5
A39: Minimum Threshold | D39: =Compliance!$D$146 -> 3
A40: Score - Requirement met | D40: =Compliance!$D$147 -> 0.00
A41: Higher Than MinimumThreshold? | D41: =Compliance!$D$148 -> N
A43: C35 Citrix Maintenance and Support
A44: Total | B44: =Compliance!$B$154 -> 15 | D44: =Compliance!$D$154 -> 0
A45: Percentage comply | D45: =Compliance!$D$155 -> 0.0000
A46: Weight | D46: =Compliance!$D$156 -> 5
A47: Minimum Threshold | D47: =Compliance!$D$157 -> 3
A48: Score - Requirement met | D48: =Compliance!$D$158 -> 0.00
A49: Higher Than MinimumThreshold? | D49: =Compliance!$D$159 -> N
A51: C36 Service Management Services
A52: Total | B52: =Compliance!$B$177 -> 55 | D52: =Compliance!$D$177 -> 0
A53: Percentage comply | D53: =Compliance!$D$178 -> 0.0000
A54: Weight | D54: =Compliance!$D$179 -> 5
A55: Minimum Threshold | D55: =Compliance!$D$180 -> 3
A56: Score - Requirement met | D56: =Compliance!$D$181 -> 0.00
A57: Higher Than MinimumThreshold? | D57: =Compliance!$D$182 -> N
A59: C37 Data Backup and Restores
A60: Total | B60: =Compliance!$B$196 -> 46 | D60: =Compliance!$D$196 -> 0
A61: Percentage comply | D61: =Compliance!$D$197 -> 0.0000
A62: Weight | D62: =Compliance!$D$198 -> 5
A63: Minimum Threshold | D63: =Compliance!$D$199 -> 3
A64: Score - Requirement met | D64: =Compliance!$D$200 -> 0.00
A65: Higher Than MinimumThreshold? | D65: =Compliance!$D$201 -> N
A67: C38 End-user Support Services
A68: Total | B68: =Compliance!$B$257 -> 201 | D68: =Compliance!$D$257 -> 0
A69: Percentage comply | D69: =Compliance!$D$258 -> 0.0000
A70: Weight | D70: =Compliance!$D$259 -> 5
A71: Minimum Threshold | D71: =Compliance!$D$260 -> 3
A72: Score - Requirement met | D72: =Compliance!$D$261 -> 0.00
A73: Higher Than MinimumThreshold? | D73: =Compliance!$D$262 -> N
A75: C39 End-Point Security Services
A76: Rate: Hourly Rate inclusive of VAT | D76: =IF(C76="Y",B76*1,0) -> 0
A77: Total | B77: =Compliance!$B$302 -> 148 | D77: =Compliance!$D$302 -> 0
A78: Percentage comply | D78: =Compliance!$D$303 -> 0.0000
A79: Weight | D79: =Compliance!$D$304 -> 5
A80: Minimum Threshold | D80: =Compliance!$D$305 -> 3
A81: Score - Requirement met | D81: =Compliance!$D$306 -> 0.00
A82: Higher Than MinimumThreshold? | D82: =Compliance!$D$307 -> N
A84: C40 Enterprise Systems Management
A85: Total | B85: =Compliance!$B$318 -> 38 | D85: =Compliance!$D$318 -> 0
A86: Percentage comply | D86: =Compliance!$D$319 -> 0.0000
A87: Weight | D87: =Compliance!$D$320 -> 5
A88: Minimum Threshold | D88: =Compliance!$D$321 -> 3
A89: Score - Requirement met | D89: =Compliance!$D$322 -> 0.00
A90: Higher Than MinimumThreshold? | D90: =Compliance!$D$323 -> N
A92: C41 M365 Cloud Services Support and Maintenance
A93: Total | B93: =Compliance!$B$374 -> 123 | D93: =Compliance!$D$374 -> 0
A94: Percentage comply | D94: =Compliance!$D$375 -> 0.0000
A95: Weight | D95: =Compliance!$D$376 -> 5
A96: Minimum Threshold | D96: =Compliance!$D$377 -> 3
A97: Score - Requirement met | D97: =Compliance!$D$378 -> 0.00
A98: Higher Than MinimumThreshold? | D98: =Compliance!$D$379 -> N
A101: C42 Operating System and Application Hosting Environments (On Premise)
A102: Total | B102: =Compliance!$B$437 -> 204 | D102: =Compliance!$D$437 -> 0
A103: Percentage comply | D103: =Compliance!$D$438 -> 0.0000
A104: Weight | D104: =Compliance!$D$439 -> 15
A105: Minimum Threshold | D105: =Compliance!$D$440 -> 8
A106: Score - Requirement met | D106: =Compliance!$D$441 -> 0.00
A107: Higher Than MinimumThreshold? | D107: =Compliance!$D$442 -> N
A109: C43 Multi Cloud Services Support and Maintenance – Hosting
A110: Total | B110: =Compliance!$B$503 -> 184 | D110: =Compliance!$D$503 -> 36
A111: Percentage comply | D111: =Compliance!$D$504 -> 19.5652
A112: Weight | D112: =Compliance!$D$505 -> 5
A113: Minimum Threshold | D113: =Compliance!$D$506 -> 2
A114: Score - Requirement met | D114: =Compliance!$D$507 -> 0.98
A115: Higher Than MinimumThreshold? | D115: =Compliance!$D$508 -> N

Sheet Summary
A1: Service | B1: Priority | C1: Indicate Comply =Y / Not Comply = N | D1: Score
A2: General functionality requirement (Service C1 to C30)
A3: Higher Than MinimumThreshold? | D3: =Compliance!$D$48 -> N
A4: C31 Network Management Services
A5: Higher Than MinimumThreshold? | D5: =Compliance!$D$102 -> N
A6: C32 Network Cabling
A7: Higher Than MinimumThreshold? | D7: =Compliance!$D$117 -> N
A8: C33 SQL Database Management
A9: Higher Than MinimumThreshold? | D9: =Compliance!$D$131 -> N
A10: C34 SharePoint Support
A11: Higher Than MinimumThreshold? | D11: =Compliance!$D$148 -> N
A12: C35 Citrix Maintenance and Support
A13: Higher Than MinimumThreshold? | D13: =Compliance!$D$159 -> N
A14: C36 Service Management Services
A15: Higher Than MinimumThreshold? | D15: =Compliance!$D$182 -> N
A16: C37 Data Backup and Restores
A17: Higher Than MinimumThreshold? | D17: =Compliance!$D$201 -> N
A18: C38 End-user Support Services
A19: Higher Than MinimumThreshold? | D19: =Compliance!$D$262 -> N
A20: C39 End-Point Security Services
A21: Higher Than MinimumThreshold? | D21: =Compliance!$D$307 -> N
A22: C40 Enterprise Systems Management
A23: Higher Than MinimumThreshold? | D23: =Compliance!$D$323 -> N
A24: C41 M365 Cloud Services Support and Maintenance
A25: Higher Than MinimumThreshold? | D25: =Compliance!$D$379 -> N
A26: C42 Operating System and Application Hosting Environments (On Premise)
A27: Higher Than MinimumThreshold? | D27: =Compliance!$D$442 -> N
A28: C43 Multi Cloud Services Support and Maintenance – Hosting
A29: Higher Than MinimumThreshold? | D29: =Compliance!$D$508 -> N

Sheet Cabling Rate Card
A1: Cabling Rate Card
A2: All prices must be inclusive of VAT | B2: Cost VAT Incl | C2: Cost VAT Incl | D2: Cost VAT Incl
A3: Twisted pair per meter | B3: UTP | C3: FTP | D3: STP
A4: Cat 5e (Grey) | B4: R | C4: R | D4: R
A5: Cat 5e (Red) | B5: R | C5: R | D5: R
A6: Cat 5e (Green) | B6: R | C6: R | D6: R
A7: Cat 5e (Blue) | B7: R | C7: R | D7: R
A9: Cat 6 (Grey) | B9: R | C9: R | D9: R
A10: Cat 6 (Red) | B10: R | C10: R | D10: R
A11: Cat 6 (Green) | B11: R | C11: R | D11: R
A12: Cat 6 (Blue) | B12: R | C12: R | D12: R
A14: Cat 6a(Grey) | B14: R | C14: R | D14: R
A15: Cat 6a (Red) | B15: R | C15: R | D15: R
A16: Cat 6a (Green) | B16: R | C16: R | D16: R
A17: Cat 6a (Blue) | B17: R | C17: R | D17: R
A19: UTP Fly Leads | B19: 1 Meter | C19: 3 Meter | D19: 10 Meter
A20: Cat 5e (Grey) | B20: R | C20: R | D20: R
A21: Cat 5e (Red) | B21: R | C21: R | D21: R
A22: Cat 5e (Green) | B22: R | C22: R | D22: R
A23: Cat 5e (Blue) | B23: R | C23: R | D23: R
A25: Cat 6 (Grey) | B25: R | C25: R | D25: R
A26: Cat 6 (Red) | B26: R | C26: R | D26: R
A27: Cat 6 (Green) | B27: R | C27: R | D27: R
A28: Cat 6 (Blue) | B28: R | C28: R | D28: R
A30: Cat 6a(Grey) | B30: R | C30: R | D30: R
A31: Cat 6a (Red) | B31: R | C31: R | D31: R
A32: Cat 6a (Green) | B32: R | C32: R | D32: R
A33: Cat 6a (Blue) | B33: R | C33: R | D33: R
A35: Material Per Network Point | B35: UTP | C35: FTP | D35: STP
A36: (100 Meter- terminated including 3m fly lead and material)
A37: Cat 5e (Grey) | B37: R | C37: R | D37: R
A38: Cat 5e (Red) | B38: R | C38: R | D38: R
A39: Cat 5e (Green) | B39: R | C39: R | D39: R
A40: Cat 5e (Blue) | B40: R | C40: R | D40: R
A42: Cat 6 (Grey) | B42: R | C42: R | D42: R
A43: Cat 6 (Red) | B43: R | C43: R | D43: R
A44: Cat 6 (Green) | B44: R | C44: R | D44: R
A45: Cat 6 (Blue) | B45: R | C45: R | D45: R
A47: Cat 6a(Grey) | B47: R | C47: R | D47: R
A48: Cat 6a (Red) | B48: R | C48: R | D48: R
A49: Cat 6a (Green) | B49: R | C49: R | D49: R
A50: Cat 6a (Blue) | B50: R | C50: R | D50: R
A52: Fibre Cable - Material per meter | B52: OM3 | C52: OM4 | D52: OM5
A53: Internal use
A54: 4 Core | B54: R | C54: R | D54: R
A55: 6 Core | B55: R | C55: R | D55: R
A56: 8 Core | B56: R | C56: R | D56: R
A57: 12 Core | B57: R | C57: R | D57: R
A59: External - Material overhead use per meter
A60: 4 Core | B60: R | C60: R | D60: R
A61: 6 Core | B61: R | C61: R | D61: R
A62: 8 Core | B62: R | C62: R | D62: R
A63: 12 Core | B63: R | C63: R | D63: R
A65: Wooden poles | B65: 3m | C65: 4.2m | D65: 6m
A66: CCA Treated H4 100mm-119mm | B66: R | C66: R | D66: R
A67: CCA Treated H4 120mm-139mm | B67: R | C67: R | D67: R
A68: CCA Treated H4 140m-159mm | B68: R | C68: R | D68: R
A70: Aluminium Power and Data Poles | B70: 3 Meter | C70: 4 Meter | D70: 5 Meter
A71: Diameter (57 mm) 4 compartments | B71: R | C71: R | D71: R
A72: Assembly Kit | B72: R | C72: R | D72: R
A74: Fiber Patch leads (LC-LC) | B74: 3 Meter | C74: 5 Meter | D74: 10 Meter
A75: OM3 | B75: R | C75: R | D75: R
A76: OM4 | B76: R | C76: R | D76: R
A77: OM5 | B77: R | C77: R | D77: R
A79: UTP Terminated Patch panels with cable management | B79: 24 Port | C79: 48 Port
A80: Cat 5e | B80: R | C80: R
A81: Cat 6 | B81: R | C81: R
A82: Cat6a | B82: R | C82: R
A84: LC Terminated Sliding Patch panels with cable management | B84: Qty x1 | C84: Qty x10
A85: 6 Fiber | B85: R | C85: R
A86: 12 Fiber | B86: R | C86: R
A87: 48 Fiber | B87: R | C87: R
A89: Brush Panel | B89: Qty x1 | C89: Qty x10
A90: 1U brush panel | B90: R | C90: R
A92: Cable tray (per 3 meter) | B92: 150 mm (W) | C92: 300 mm (W)
A93: Galvanised mesh cable tray | B93: R | C93: R
A94: (3m length, 50mm High)
A95: Accessories for 3 meter length mounting | B95: R | C95: R
A97: White PVC Trunking (3 meter) | B97: Qty x1 | C97: Qty x10
A98: 50 x 50 Trunk + lid | B98: R | C98: R
A99: 75 x 50 Trunk + lid | B99: R | C99: R
A100: 75 x 75 Trunk + lid | B100: R | C100: R
A101: 100 x 50 Trunk + lid | B101: R | C101: R
A102: 100 x 75 Trunk + lid | B102: R | C102: R
A103: 100 x 100 Trunk + lid | B103: R | C103: R
A105: Trunking accessories | B105: Qty x1 | C105: Qty x10
A106: 50 x 50 Flat angle | B106: R | C106: R
A107: 75 x 50 Flat angle | B107: R | C107: R
A108: 75 x 75 Flat angle | B108: R | C108: R
A109: 100 x 50 Flat angle | B109: R | C109: R
A110: 100 x 75 Flat angle | B110: R | C110: R
A111: 100 x 100 Flat angle | B111: R | C111: R
A112: 50 x 50 Int angle | B112: R | C112: R
A113: 75 x 50 Int angle | B113: R | C113: R
A114: 75 x 75 Int angle | B114: R | C114: R
A115: 100 x 50 Int angle | B115: R | C115: R
A116: 100 x 75 Int angle | B116: R | C116: R
A117: 100 x 100 Int angle | B117: R | C117: R
A118: 50 x 50 Stop end | B118: R | C118: R
A119: 75 x 50 Stop end | B119: R | C119: R
A120: 75 x 75 Stop end | B120: R | C120: R
A121: 100 x 50 Stop end | B121: R | C121: R
A122: 100 x 75 Stop end | B122: R | C122: R
A123: 100 x 100 Stop end | B123: R | C123: R
A125: PVC Conduit (4 meter) | B125: Qty x1 | C125: Qty x10
A126: 20 mm | B126: R | C126: R
A127: 25 mm | B127: R | C127: R
A128: 32 mm | B128: R | C128: R
A129: 40 mm | B129: R | C129: R
A130: 50 mm | B130: R | C130: R
A132: Junction boxes | B132: Qty x1 | C132: Qty x10
A133: 100 x 100 | B133: R | C133: R
A135: Labour (per 1 hour - Installation) | B135: Business hours | C135: After hours | D135: Sundays and Public Holidays
B136: Hourly Rate VAT Incl | C136: Hourly Rate VAT Incl | D136: Hourly Rate VAT Incl
A137: Project manager | B137: R | C137: R | D137: R
A138: Team leader | B138: R | C138: R | D138: R
A139: Technician | B139: R | C139: R | D139: R
A140: Specialist | B140: R | C140: R | D140: R
A142: Labour (per 1 hour - Faulty finding) | B142: Business hours | C142: After hours | D142: Sundays and Public Holidays
B143: Hourly Rate VAT Incl | C143: Hourly Rate VAT Incl | D143: Hourly Rate VAT Incl
A144: Project manager | B144: R | C144: R | D144: R
A145: Team leader | B145: R | C145: R | D145: R
A146: Technician | B146: R | C146: R | D146: R
A147: Specialist | B147: R | C147: R | D147: R
A149: Labour (per 1 hour - Travel) | B149: Business hours | C149: After hours | D149: Sundays and Public Holidays
B150: Hourly Rate VAT Incl | C150: Hourly Rate VAT Incl | D150: Hourly Rate VAT Incl
A151: Project manager | B151: R | C151: R | D151: R
A152: Team leader | B152: R | C152: R | D152: R
A153: Technician | B153: R | C153: R | D153: R
A154: Specialist | B154: R | C154: R | D154: R
A156: Travel cost per kilometre | B156: Cost per kilometre Vat Incl
A157: Rate per kilometre | B157: R
A159: Additional Item not listed but required | B159: Qty | C159: Unit type | D159: Price
D160: R
D161: R
D162: R
D163: R
D164: R
D165: R
D166: R
A167: Are we going to evaluate Rate Card quotes in the pricing

Sheet Network Mngt Services Rate Card
A1: Network Management Services Rate Card
A2: Description of skill / material | B2: Unit of measure (e.g. hour) | C2: Rate per unit (Excl VAT)

Sheet EPS Services Rate Card
A1: End-Point Security Services Rate Card
A2: Description of skill / material | B2: Unit of measure (e.g. hour) | C2: Rate per unit (Excl VAT)

Sheet M365 Rate Card
A1: M365 Cloud Services Support and Maintenance Rate Card
A2: Description of skill / material | B2: Unit of measure (e.g. hour) | C2: Rate per unit (Excl VAT)

Sheet OS & Hosting Rate Card
A1: Operating System and Application Hosting Environments (On Premise) Rate Card
A2: Description of skill / material | B2: Unit of measure (e.g. hour) | C2: Rate per unit (Excl VAT)

Sheet Multi Cloud Rate Card
A1: Multi Cloud Services Support and Maintenance – Hosting Rate Card
A2: Description of skill / material | B2: Unit of measure (e.g. hour) | C2: Rate per unit (Excl VAT)
